Cogmind - Beta 16.1 @@@ ROGUE MODE // 2026.04.09 @ 20:39:22 Player: Ammie Result: Self-destructed Performance ------------- Evolutions (1) 500 Regions Visited (2) 400 Robots Destroyed (29) 145 Value Destroyed (690) 690 Prototype IDs (1) 20 Alien Tech Used (0) 0 Bonus (0) 0 TOTAL SCORE: 1755 Bonus ------- None Cogmind --------- Core Integrity 189/400 Matter 166/300 Energy 153/250 System Corruption 6% Temperature Critical (517) Movement Flying (355) Ox4 Location -9/Materials Parts ------- > --- POWER (1) -------- Ion Engine > --- PROPULSION (4) --- VTOL Module > --- UTILITY (2) ------ (None) > --- WEAPON (2) ------- Ion Cannon Ion Cannon > --- INVENTORY (5) ---- Light Ion Engine Weight Redist. System Hacking Suite Improved Medium Laser Ion Cannon Peak State ------------ > --- POWER ------------ Light Nuclear Core > --- PROPULSION ------- Hover Unit Improved Hover Unit Improved Hover Unit > --- UTILITY ---------- Improved Heat Sink Small Storage Unit > --- WEAPON ----------- Ion Cannon Ion Cannon > --- INVENTORY -------- Ion Engine Ion Engine Light Ion Engine Aluminum Leg Heat Sink Weight Redist. System [Rating: 18] Favorites ----------- Power Ion Engine Engine Ion Engine Power Core Light Nuclear Core Propulsion Improved Hover Unit Leg Aluminum Leg Hover Unit Improved Hover Unit Flight Unit VTOL Module Utility Small Storage Unit Device Improved Heat Sink Storage Small Storage Unit Weapon Ion Cannon Energy Gun Medium Laser Energy Cannon Ion Cannon Ballistic Gun Light Assault Rifle Build | -11 -10 -9 ------- Run | Yrd Mat Mat Slots Evolved 2 | . . 2 Power . | . . . Propulsion 2 | . . 2 Utility . | . . . Weapon . | . . . Parts Attached 27 | 6 11 10 Power 6 | 1 4 1 Engine 5 | 1 3 1 Core 1 | . 1 . Reactor . | . . . Propulsion 9 | 2 4 3 Treads . | . . . Leg 2 | 2 . . Wheel . | . . . Hover 6 | . 4 2 Flight 1 | . . 1 Utility 3 | 1 1 1 Device 2 | . 1 1 Storage 1 | 1 . . Processor . | . . . Hackware . | . . . Protection . | . . . Artifact . | . . . Weapon 9 | 2 2 5 Energy Gun 2 | . 1 1 Energy Cannon 4 | . . 4 Ballistic Gun 3 | 2 1 . Ballistic Cannon . | . . . Launcher . | . . . Special Weapon . | . . . Impact Weapon . | . . . Slashing Weapon . | . . . Piercing Weapon . | . . . Special Melee Weapon . | . . . Unidentified Prototypes 1 | . . 1 Parts Lost 12 | . 3 9 Power 3 | . 1 2 Propulsion 5 | . 2 3 Utility 3 | . . 3 Weapon 1 | . . 1 Highest Loss Streak 4 | . 1 4 To Critical Strikes . | . . . Average Backups 5 | 1 6 6 Power 1 | . 1 2 Propulsion 1 | . 2 1 Utility 1 | . 1 1 Weapon 1 | . . 1 Tool/Special . | . . . Unused Backups 4 | . 1 3 Power . | . . . Propulsion . | . . . Utility 3 | . . 3 Weapon 1 | . 1 . Tool/Special . | . . . Average Slot Usage (%) 84 | . 90 78 Engine 9 | . 11 8 Core 2 | . 2 1 Leg 2 | . 6 . Hover 24 | . 20 27 Device 7 | . 7 8 Storage 12 | . 14 10 Energy Gun 4 | . 8 1 Energy Cannon 9 | . . 17 Ballistic Gun 9 | . 19 1 Peak Build Rating 18 | 6 13 18 Average Rating 11 | 5 9 15 On Entrance 6 | . 6 13 Avg Prop Armor Cover (%) . | . . . Naked Turns . | . . . Heaviest Build 25 | 12 15 25 Greatest Support 26 | 20 20 26 Greatest Overweight (x) 7 | 3 1 7 Average Overweight (x) . | . . . Largest Inventory Capacity 8 | 8 8 8 Average Capacity 7 | 7 8 7 Most Carried 8 | 2 8 8 Average Carried 6 | 1 6 6 Final Capacity 8 | 8 8 5 Final Carried 8 | 2 8 5 Class Distribution -------------------- 93% | Mutant 6% | Scavenger-Mutant Dominant Class ---------------- Mutant | -10/Materials Mutant | -9/Materials Resources | -11 -10 -9 ----------- Run | Yrd Mat Mat Matter Collected 675 | 244 285 146 Remotely . | . . . Salvage Created 909 | . 498 411 Parts 63 | . 38 25 Haulers Intercepted 2 | . 2 . Recyclers Shooed . | . . . Parts Field Recycled . | . . . Retrieved Matter . | . . . Parts Self-Destructed . | . . . Prevented . | . . . Parts Restored . | . . . Kills | -11 -10 -9 ------- Run | Yrd Mat Mat Combat Hostiles Destroyed 20 | . 10 10 Guns 10 | . 10 . Cannons 9 | . . 9 Classes Destroyed 8 | . 5 3 Worker 2 | . . 2 Builder 1 | . . 1 Hauler 2 | . 2 . Operator 2 | . 1 1 Watcher 2 | . 2 . Swarmer 6 | . 3 3 Grunt 11 | . 7 4 Sentry 3 | . . 3 Best Kill Streak 5 | . 3 5 Combat Bots Only 4 | . 3 4 Max Kills in Single Turn 2 | . 2 2 Gunslinging . | . . . Exploded . | . . . Melee . | . . . Uniques/NPCs Destroyed . | . . . Combat | -11 -10 -9 -------- Run | Yrd Mat Mat Hostile Shots Fired 171 | . 99 72 Missed 52 | . 37 15 Hits 119 | . 62 57 Projectile 119 | . 62 57 Critical Strikes 2 | . . 2 Damage Taken 1574 | . 759 815 Core 376 | . 165 211 Absorbed by Shields . | . . . Regen/Repaired (Parts) 73 | . 12 61 Core Remaining (%) 67 | 100 34 . Volleys Fired 123 | . 76 47 Largest 2 | . 2 2 Hottest 120 | . 70 120 Shots Fired 239 | . 151 88 Gun 161 | . 151 10 Cannon 78 | . . 78 Launcher . | . . . Special . | . . . Kinetic 118 | . 114 4 Thermal 121 | . 37 84 Explosive . | . . . Electromagnetic . | . . . Robot Hit Streak 11 | . 11 6 Robot Miss Streak 6 | . 6 5 Penetration Max . | . . . Secondary Targets 1 | . 1 . Max Gunslinging Chain 1 | . 1 . Shots Hit Robots 134 | . 90 44 Core Hits 46 | . 34 12 Critical Kills 1 | . . 1 Critical Parts Destroyed . | . . . Critical Strikes 4 | . 3 1 Burn 3 | . 3 . Meltdown 1 | . . 1 Melee Attacks . | . . . Impact . | . . . Slashing . | . . . Piercing . | . . . Sneak Attacks . | . . . Combat Hostiles . | . . . Follow-up Attacks . | . . . Damage Inflicted 2026 | . 953 1073 Guns 1002 | . 953 49 Cannons 1024 | . . 1024 Explosions . | . . . Melee . | . . . Ramming . | . . . Kinetic 681 | . 656 25 Thermal 1345 | . 297 1048 Explosive . | . . . Electromagnetic . | . . . Impact . | . . . Slashing . | . . . Piercing . | . . . Highest Corruption 6 | . . 6 Average Corruption 5 | . . 5 Corruption Purged . | . . . Corruption Blocked . | . . . Effects 9 | . . 9 Message Errors 4 | . . 4 Matter Fused 1 | . . 1 Heat Flow Errors 1 | . . 1 Energy Discharges 2 | . . 2 Weapon Failures 1 | . . 1 Overload Shots . | . . . Overflow Damage 29 | . . 29 Projectiles 29 | . . 29 Explosions . | . . . Melee . | . . . Knockbacks . | . . . Impact . | . . . Kinetic . | . . . Secondary . | . . . Self-Inflicted Damage . | . . . Shots . | . . . Rammed . | . . . Targets Rammed . | . . . Kicked . | . . . Crushed . | . . . Highest Temperature 577 | . 68 577 Average Temperature 121 | . 11 191 Received Heat Transfer 600 | . 345 255 Effects 25 | . . 25 Shutdowns 4 | . . 4 Energy Bleed 4 | . . 4 Interference 3 | . . 3 Matter Decay 3 | . . 3 Short Circuit 2 | . . 2 Damage (minor) 2 | . . 2 Damage (major) 5 | . . 5 Damage (core) 2 | . . 2 Siege Activations . | . . . Martial Activations . | . . . Shielding Activations . | . . . Robots Disrupted . | . . . Combat Hostiles . | . . . Robots Corrupted . | . . . Combat Hostiles . | . . . Parts Fried . | . . . Impact Corruptions . | . . . Robots Melted 1 | . . 1 Combat Hostiles 1 | . . 1 Parts Melted 6 | . 1 5 Heat Transferred 2849 | . 1110 1739 Parts Sabotaged . | . . . Parts Stolen . | . . . Parts Stripped . | . . . Power Chain Reactions . | . . . Alert | -11 -10 -9 ------- Run | Yrd Mat Mat Maximum Alert Level . | . . . Low Security (%) 100 | 100 100 100 Level 1 . | . . . Level 2 . | . . . Level 3 . | . . . Level 4 . | . . . Level 5 . | . . . High Security . | . . . Max Security . | . . . Peak Influence 96 | . 91 96 Initial 17 | . . 17 Average 28 | . 38 27 Influence Increases 599 | . 284 315 Destroy 0b10 Robot/C 400 | . 200 200 Destroy 0b10 Robot/NC 45 | . 25 20 Destroy Leader 108 | . 58 50 Successful Hack 3 | . . 3 Disable Machine 30 | . . 30 Destroy Structure 13 | . 1 12 Influence Decreases 571 | . 241 330 Entered New Map 26 | . . 26 Time Decay 466 | . 221 245 Lost Part 79 | . 20 59 Squads Dispatched 5 | . 2 3 Investigation 1 | . . 1 Extermination . | . . . Reinforcement 4 | . 2 2 Assault . | . . . Garrison . | . . . Intercept . | . . . Searches Triggered . | . . . Construction Impeded . | . . . Haulers Reinforced . | . . . Active Scanning Responses . | . . . Cargo Convoy Interrupts . | . . . Stealth | -11 -10 -9 --------- Run | Yrd Mat Mat Distress Signals 1 | . . 1 Communications Jammed . | . . . Distress Signals . | . . . Times Spotted 36 | . 18 18 Peak Tracking Total 6 | . 4 6 Tactical Retreats . | . . . Traps | -11 -10 -9 ------- Run | Yrd Mat Mat Traps Triggered 7 | . 2 5 Indirectly . | . . . Trap Hack Attempts . | . . . Triggered . | . . . Disarmed . | . . . Reprogrammed . | . . . Reused . | . . . Traps Extracted . | . . . Installed . | . . . Triggered . | . . . Machines | -11 -10 -9 ---------- Run | Yrd Mat Mat Machines Disabled 2 | . . 2 Max in Single Turn 1 | . . 1 Machines Repaired . | . . . Machines Dismantled . | . . . Machines Sabotaged . | . . . Overloaded Fab Kills . | . . . Hacking | -11 -10 -9 --------- Run | Yrd Mat Mat Machines Accessed 3 | . 1 2 Terminals . | . . . Fabricators . | . . . Repair Stations 2 | . 1 1 Recycling Units . | . . . Scanalyzers 1 | . . 1 Garrison Access . | . . . Total Hacks 8 | . 3 5 Successful 7 | . 2 5 Failed 1 | . 1 . Catastrophic . | . . . Database Lockouts . | . . . Manual . | . . . Terminals . | . . . Fabricators . | . . . Repair Stations 5 | . 3 2 Recycling Units . | . . . Scanalyzers 3 | . . 3 Garrison Access . | . . . Terminal Hacks . | . . . Fabricator Hacks . | . . . Repair Station Hacks 4 | . 2 2 Scan Component 2 | . 1 1 Repair 2 | . 1 1 Recycling Unit Hacks . | . . . Scanalyzer 3 | . . 3 Retrieve Study 3 | . . 3 Garrison Access Hacks . | . . . Unauthorized Hacks . | . . . Terminals . | . . . Fabricators . | . . . Repair Stations . | . . . Recycling Units . | . . . Scanalyzers . | . . . Garrison Access . | . . . Data Cores Recovered . | . . . Used . | . . . Hacking Detections 1 | . . 1 Full Trace Events 1 | . . 1 Feedback Events . | . . . Feedback Blocked . | . . . Robot Schematics Acquired . | . . . Robots Built . | . . . Authchips . | . . . Time . | . . . Total Robot Build Rating . | . . . Part Schematics Acquired . | . . . Parts Built . | . . . Authchips . | . . . Time . | . . . Total Part Build Rating . | . . . Part Studies Acquired 3 | . . 3 Parts Repaired 2 | . 1 1 Time 58 | . 32 26 Parts Recycled . | . . . Recycled Matter . | . . . Retrieved Matter . | . . . Retrieved Components . | . . . Parts Scanalyzed . | . . . Part Schematics Acquired . | . . . Parts Damaged . | . . . Bothacking | -11 -10 -9 ------------ Run | Yrd Mat Mat Used RIF Installer . | . . . Robots Hacked . | . . . Non-combat . | . . . Combat . | . . . Robot Hacks Applied . | . . . Relay Couplers Released . | . . . Fabnet Peak Effective % . | . . . Robots Rewired . | . . . Allies Hacked . | . . . Hacks Repelled . | . . . Allies | -11 -10 -9 -------- Run | Yrd Mat Mat Total Allies . | . . . Largest Group . | . . . Highest-Rated Group . | . . . Highest-Rated Ally . | . . . Total Orders . | . . . Ally Attacks . | . . . Total Damage . | . . . Kills . | . . . Allies Corrupted . | . . . Allies Melted . | . . . Intel | -11 -10 -9 ------- Run | Yrd Mat Mat Active Infowar (turns) . | . . . Robot Analysis Total . | . . . Derelict Logs Recovered . | . . . Drone Launches . | . . . Drone Recoveries . | . . . Exploration | -11 -10 -9 ------------- Run | Yrd Mat Mat Turns Passed 1394 | 154 563 677 Spaces Moved 924 | 117 391 416 Core 28 | 13 . 15 Treads . | . . . Legs 159 | 104 55 . Wheels . | . . . Hover 737 | . 336 401 Flight . | . . . Fastest Speed 48 | 50 56 48 Average Speed 95 | 122 75 106 Slowest Speed 400 | 200 130 400 Overloaded Moves . | . . . Propulsion Burnouts . | . . . Robots Hopped . | . . . Potential Cave-ins . | . . . Cave-ins Triggered . | . . . Exploration Rate (%) 33 | 5 68 28 Regions Visited 2 Branch Regions . Pre-discovered Areas . | . . . Known Exits Taken . | . . . Unknown Exits Taken 2 | 1 1 . Scrap Searched . | . . . Spaces Dug . | . . . Terrain Destroyed 11 | . . 11 Melee . | . . . Projectile 11 | . . 11 AOE . | . . . Terrain Rammed . | . . . Walls Destroyed . | . . . Machines Disabled . | . . . Actions | -11 -10 -9 --------- Run | Yrd Mat Mat Total 1206 | 124 523 559 Wait 106 | . 32 74 Move 922 | 116 390 416 Hop . | . . . Pick Up 16 | 2 10 4 Fast Attach 10 | 6 1 3 Attach 10 | . 4 6 Detach . | . . . Swap 14 | . 8 6 Drop 5 | . 2 3 Fire 123 | . 76 47 Melee . | . . . Ram . | . . . Kick . | . . . Crush . | . . . Escape Stasis . | . . . Rewire . | . . . Trap . | . . . Miscellaneous . | . . . Route ------- -11/Scrapyard -10/Materials (discovered 2 exits: *Mat / [*Min]) -9/Materials (discovered 1 exit: [*Min]) History --------- Turn | Location | Event 21 | -11/Scrapyard | Discovered new exit (range 15) 155 | -11/Scrapyard | Entered Materials 315 | -10/Materials | Build established: Mutant 470 | -10/Materials | Discovered new exit (range 16) 589 | -10/Materials | Core integrity fell below 50% 656 | -10/Materials | Discovered new exit (range 8) 703 | -10/Materials | Repaired Imp. Hover Unit 718 | -10/Materials | Entered another Materials area 718 | -9/Materials | Evolved 2 slots: Propulsion x2 720 | -9/Materials | Discovered new exit (range 8) 784 | -9/Materials | Repaired Med. Laser 857 | -9/Materials | Lost 3 parts (1p1n1w) 1295 | -9/Materials | Lost 4 parts (1p2n1u) 1390 | -9/Materials | Core integrity fell below 50% 1395 | -9/Materials | Self-destructed Last Messages --------------- 01359_ K-01 Serf cleans the Terminal. 01362_ Acquired VTOL Module. 01365_ K-01 Serf collects debris. 01368_ K-01 Serf cleans the Terminal. 01369_ K-01 Serf collects debris. 01373_ Destroyed Aluminum Leg. 01377_ Overheating: Energy bleed (-24). 01377_ NR3PSWYX/XSX6V,I==/W4/ILW 01394_ Power failure, Ion Engine shutdown. 01394_ Overheating: Energy bleed (-16). Map ----- +----------------------------------------------------+ | ????# #######+### #???????????????? | | ????# #####+####### #########???????????????? | | ????# ## ## #???????????????????????? | | ????# ## """" ## #???????????????????????? | | ???## ## """" ## ! #???????????????????????? | | ???# # """" ## #???????????????????????? | | ???# # / ## #???????????????????????? | | ???# < # ## =!#?????????? ????????????? | | ???# # ## =!#?????????? ????????????? | | ???# # ## #?????????? ????????????? | | ##### ###+##############?????????? #???????????? | | """ # #?# #????????? ????????????? #???????????? | | """ # #?# ########## ????????????? #???????????? | | """ + ### ## ## ????????????? #???????????? | | # ##" ## = ## ???????????# #???????????? | | # ### ##"S ## ???????????# ##??????????? | | # ## #""" ## ???????????# #???????????? | | ###### # "" #? ?########## #???????????? | | + # #?#a###### #???????????? | | ########## ####+###?# ^ ^ #???????????? | | # # ## #?# ^^ ] ##??????????? | | #" """ #= % ### k %/=[##??????????? | | #T """ + * !%* ""T""=%##??????????? | | #" """ # ##### * """"" [##??????????? | | # # ### #??## =%#### | | # """ # #?#######???#@ u ug%[ ! | | # """ + #???????????# ;######## #? | | # """ ####???????????# ##?????????? #? | | # #??????????????#########???????????????#? | | ##########???????????????????????????????????????? | | ?????????????????????????????????????????????????? | | | | | | | | | | | | | | | | | | | | | | | | | | | | | | | | | | | | | | | +----------------------------------------------------+ Best States ------------- Heat Dissipation 42 Energy Generation 14 Energy Capacity 265 Matter Stores 300 Matter Capacity 300 Sight Range 16 Terrain Scan Density 10 Evasion (%) 55 Item Schematics ----------------- None Robot Schematics ------------------ None Fabricated ------------ Nothing Repaired ---------- Imp. Hover Unit | 65% | -10/Materials Med. Laser | 12% | -9/Materials Studied --------- Imp. Ion Engine | -9/Materials | Hacked Imp. Hover Unit | -9/Materials | Hacked Hover Unit | -9/Materials | Hacked Alien Tech Used ----------------- None Achievements -------------- None Challenges ------------ None Game ------ Seed LinkedPartitionJetlance Manual? 0 Play Time 00:12:51 Cumulative 46.5 hours Start 2026.04.09 @ 20:26:58 End 2026.04.09 @ 20:39:22 Sessions 1 Manual Loads 0 Difficulty Rogue Special Mode None Game No. 81 Rogue 81 Adventurer 0 Explorer 0 Win Type - Total 0 Types 0/0/0/0/0/0/0/0/0/0 Lore% 19 Gallery% 25 Achievement% 21 Wizard Run 0 Options --------- Layout 0 ASCII 0 Keyboard 0 Movement Mouse Keybinds 0 Fullscreen 1 Font 24/Smallcaps Map View 38x25 Zoom Use 99% Tactical HUD 1 Map Filters NONE Filters NONE Steam 1 RUN: 0cd30257-ae18-4db8-8a48-da6af231bc3d